bitfinex-derivatives/quotes_SOLF0:USTF0_20241222
["timestamp","ask_amount","ask_price","bid_price","bid_amount"]
[1734885765874,5.8614,182.53,182.52,5.13320801]
[1734885766075,3.12,182.53,182.44,20.71565714]
[1734885766377,3.12,182.53,182.42,655.22302093]
[1734885766378,3.12,182.53,182.45,3.3641]
[1734885766577,3.12,182.53,182.45,8.4955341]
[1734885766880,3.12,182.53,182.45,3.3641]
[1734885767071,1.37127761,182.52,182.45,3.3641]
[1734885767271,2.7419,182.5,182.45,3.3641]
[1734885767873,3.12,182.53,182.45,3.3641]
[1734885768077,2.7419,182.49,182.45,3.3641]
[1734885768673,33.76874205,182.55,182.45,3.3641]
[1734885768974,4.49133178,182.54,182.45,3.3641]
[1734885769173,2.7423,182.46,182.45,1.7004]
[1734885769371,5.8623,182.46,182.45,1.7004]
[1734885772175,3.12,182.46,182.45,1.7004]
[1734885772379,3.12,182.5,182.45,1.7004]
[1734885772583,33.76874205,182.55,182.45,1.7004]
[1734885772881,4.49137148,182.54,182.45,1.7004]
[1734885773081,2.7417,182.51,182.46,2.7422]
[1734885773580,3.12,182.54,182.46,2.7422]
[1734885773779,1.37135332,182.53,182.45,1.7004]
[1734885773980,1.37139028,182.52,182.45,1.7004]
[1734885774179,3.12,182.54,182.45,1.7004]
[1734885774480,1.37144902,182.53,182.45,1.7004]
[1734885774674,1.37144902,182.52,182.45,1.7004]
[1734885774871,1.37144902,182.51,182.39,21.51009555]
[1734885775075,3.12,182.54,182.4,5.11861655]
[1734885775272,1.37147391,182.53,182.41,5.11861655]
[1734885775475,2.7424,182.46,182.41,7.86161655]
[1734885775679,2.7424,182.46,182.42,5.11861655]
[1734885776077,2.7424,182.46,182.41,2.743]
[1734885776582,2.7424,182.46,182.42,2.7429]
[1734885776781,2.7424,182.46,182.42,7.86106883]
[1734885776987,2.7424,182.46,182.42,2.7429]
[1734885777381,2.7425,182.45,182.41,2.743]
[1734885777975,2.7427,182.44,182.4,2.7432]
[1734885778179,2.7427,182.44,182.41,5.11899057]
[1734885778381,2.7427,182.44,182.4,2.7432]
[1734885779075,2.7427,182.44,182.41,5.11957721]
[1734885779281,2.7427,182.44,182.4,2.7432]
[1734885779777,2.7427,182.44,182.41,5.11890701]
[1734885780177,3.12,182.47,182.38,4.9123]
[1734885780382,2.7429,182.43,182.39,2.7433]
[1734885780680,2.7429,182.43,182.39,7.8644059]
[1734885780880,2.7426,182.45,182.41,2.7431]
[1734885781086,3.12,182.47,182.38,4.9123]
[1734885781284,3.12,182.46,182.38,4.9123]
[1734885781488,3.12,182.46,182.39,5.12317656]
[1734885781681,3.12,182.46,182.4,5.12317656]
[1734885782078,3.12,182.46,182.41,5.12317656]
[1734885782288,2.7425,182.45,182.41,7.86627656]
[1734885782486,2.7425,182.45,182.42,5.12317656]
[1734885782788,2.7425,182.45,182.41,2.7431]
[1734885783487,2.7425,182.45,182.42,5.12218344]
[1734885783991,2.7425,182.45,182.41,2.7431]
[1734885784286,2.7425,182.45,182.42,5.12212102]
[1734885784484,3.12,182.45,182.43,5.12212102]
[1734885784987,3.12,182.45,182.42,2.7428]
[1734885785487,3.12,182.45,182.43,5.12597826]
[1734885785987,3.12,182.45,182.38,4.9123]
[1734885786184,3.12,182.45,182.39,5.12619512]
[1734885786381,2.7428,182.44,182.38,4.9123]
[1734885786587,2.7428,182.44,182.4,5.12674738]
[1734885786785,2.7428,182.44,182.41,5.12674738]
[1734885786988,2.7428,182.44,182.42,5.12674738]
[1734885787189,2.7428,182.44,182.38,4.9123]
[1734885787392,5.8625,182.45,182.39,5.12822627]
[1734885787591,3.12,182.45,182.39,5.12822627]
[1734885787794,3.12,182.45,182.44,2.7426]
[1734885787988,2.7423,182.47,182.38,4.9123]
[1734885788186,3.12,182.47,182.4,2.7431]
[1734885788385,3.12,182.47,182.39,5.12802256]
[1734885788588,3.12,182.46,182.41,5.12802256]
[1734885788787,3.12,182.46,182.43,2.7427]
[1734885789188,3.12,182.46,182.44,5.12802256]
[1734885789395,3.12,182.46,182.43,2.7427]
[1734885789894,20.78538818,182.56,182.4,20.78538818]
[1734885790093,4.49146818,182.55,182.41,5.13012286]
[1734885790295,1.37146818,182.54,182.41,5.13012286]
[1734885790489,2.7417,182.5,182.42,5.13012286]
[1734885790789,3.12,182.55,182.43,5.13012286]
[1734885790988,2.7416,182.51,182.47,2.742]
[1734885791292,1.37133658,182.5,182.44,5.13012286]
[1734885791494,1.37133658,182.49,182.47,2.7421]
[1734885791697,5.8616,182.51,182.47,2.7421]
[1734885791990,1.37128433,182.5,182.48,5.13012286]
[1734885792291,3.12,182.53,182.49,7.87192286]
[1734885792490,4.11264465,182.52,182.5,5.13012286]
[1734885792689,2.7415,182.52,182.5,5.13012286]
[1734885792889,2.7415,182.52,182.51,5.13012286]
[1734885793092,4.11264035,182.52,182.51,5.13012286]
[1734885794993,4.1125839,182.52,182.51,5.13012286]
[1734885795486,4.1125839,182.52,182.4,10.29096415]
[1734885795794,3.12,182.53,182.43,20.78538818]
[1734885795990,1.37107766,182.52,182.43,20.78538818]
[1734885796199,3.12,182.53,182.44,3.12]
[1734885796390,1.37102828,182.52,182.44,3.12]
[1734885796592,3.12,182.53,182.44,3.12]
[1734885796593,3.12,182.53,182.45,1.6773]
[1734885796792,1.37102828,182.52,182.45,1.6773]
[1734885796994,3.12,182.53,182.46,24.04658818]
[1734885797195,3.12,182.53,182.52,2.7414]
[1734885797398,4.49098807,182.53,182.52,2.7414]
[1734885797595,3.12,182.53,182.52,2.7414]
[1734885798694,2.7411,182.55,182.52,2.7414]
[1734885798895,5.8607,182.57,182.53,2.7412]
[1734885799095,1.37084486,182.56,182.47,17.22414652]
[1734885799294,1.37084486,182.55,182.47,17.22414652]
[1734885799491,3.12,182.57,182.47,17.22414652]
[1734885799688,1.37089857,182.56,182.47,17.22414652]
[1734885799890,3.12,182.57,182.48,17.23320564]
[1734885799891,1.37089857,182.55,182.48,17.23320564]
[1734885800096,2.7414,182.53,182.49,2.7418]
[1734885800290,3.12,182.57,182.48,17.23320564]
[1734885800494,1.37088767,182.56,182.48,17.23320564]
[1734885800695,3.12,182.57,182.48,17.23320564]
[1734885800895,2.7411,182.55,182.51,2.7415]
[1734885801491,20.78538818,182.66,182.5,20.78538818]
[1734885801692,4.49073334,182.64,182.5,20.78538818]
[1734885801895,4.49073334,182.63,182.5,20.78538818]
[1734885802094,2.7404,182.6,182.56,2.7407]
[1734885802294,2.7404,182.6,182.5,20.78538818]
[1734885802295,1.37073334,182.59,182.5,20.78538818]
[1734885802489,3.12,182.63,182.5,20.78538818]
[1734885802688,1.37065283,182.62,182.5,20.78538818]
[1734885802900,1.37065283,182.61,182.51,17.21934226]
[1734885803202,2.7404,182.59,182.56,2.7408]
[1734885804196,2.7402,182.61,182.53,3.2516]
[1734885804397,3.3318,182.72,182.53,24.03698818]
[1734885804599,4.49049543,182.69,182.54,3.12]
[1734885804905,1.37049543,182.68,182.54,3.12]
[1734885805097,1.37049543,182.67,182.54,3.12]
[1734885805296,1.37049543,182.66,182.54,3.12]
[1734885805496,2.7398,182.63,182.54,3.12]
[1734885806100,3.12,182.69,182.54,3.12]
[1734885806395,1.37035086,182.68,182.54,3.12]
[1734885806600,1.37035086,182.67,182.54,3.12]
[1734885806798,20.78538818,182.61,182.52,107.32801294]
[1734885807000,6.18681033,182.6,182.52,107.32801294]
[1734885807202,20.78538818,182.58,182.52,107.32801294]
[1734885807402,1.37051033,182.57,182.52,107.32801294]
[1734885807711,20.78538818,182.58,182.52,107.32801294]
[1734885808005,2.7413,182.53,182.52,107.32801294]
[1734885808307,3.12,182.53,182.52,107.32801294]
[1734885810201,2.7413,182.54,182.52,107.32801294]
[1734885810406,5.8613,182.54,182.52,107.32801294]
[1734885811603,3.12,182.54,182.52,107.32801294]
[1734885813804,2.7406,182.58,182.52,107.32801294]
[1734885814010,3.12,182.55,182.52,107.32801294]
[1734885814408,2.7411,182.55,182.52,107.32801294]
[1734885814606,2.7411,182.55,182.5,170.3688976]
[1734885814607,5.8611,182.55,182.5,2.7417]
[1734885814806,7.56543013,182.75,182.48,20.78538818]
[1734885814807,3.12,182.57,182.48,20.78538818]
[1734885815014,2.7404,182.59,182.48,23.90538818]
[1734885815210,22.36468818,182.66,182.48,3.12]
[1734885815414,3.12,182.65,182.55,2.7409]
[1734885815818,22.36468818,182.66,182.5,8.42954819]
[1734885816009,3.12,182.65,182.53,20.78538818]
[1734885816211,3.12,182.65,182.54,1.6655]
[1734885816414,2.7394,182.66,182.62,2.7399]
[1734885816618,3.12,182.68,182.56,20.78538818]
[1734885817008,3.12,182.71,182.59,20.78538818]
[1734885817214,3.12,182.71,182.6,3.12]
[1734885817706,2.7387,182.71,182.66,2.7392]
[1734885817912,3.12,182.72,182.62,20.78538818]
[1734885818108,3.12,182.72,182.63,33.68148404]
[1734885818309,2.7382,182.74,182.63,33.68148404]
[1734885818511,5.8582,182.74,182.63,33.68148404]
[1734885818715,3.12,182.74,182.63,33.68148404]
[1734885818914,3.12,182.74,182.61,1.6655]
[1734885819510,3.12,182.74,182.64,2.7395]
[1734885819720,3.12,182.74,182.62,107.58931674]
[1734885820019,2.7389,182.69,182.62,107.58931674]
[1734885820413,3.12,182.74,182.62,107.58931674]
[1734885820617,2.7387,182.7,182.65,2.7394]
[1734885820923,3.12,182.74,182.62,107.58931674]
[1734885821114,2.7389,182.69,182.62,109.18221674]
[1734885821417,5.8589,182.69,182.62,109.18221674]
[1734885821819,5.8589,182.69,182.65,2.7395]
[1734885822919,3.12,182.69,182.62,142.86370078]
[1734885823116,2.7386,182.71,182.62,142.86370078]
[1734885823920,3.12,182.72,182.62,142.86370078]
[1734885824618,3.12,182.76,182.65,33.68148404]
[1734885824814,3.12,182.76,182.65,36.80148404]
[1734885825023,3.12,182.76,182.7,2.7387]
[1734885825218,2.7381,182.75,182.7,2.7387]
[1734885826117,3.12,182.76,182.68,33.68148404]
[1734885826319,3.12,182.79,182.69,3.4286]
[1734885826524,5.8575,182.79,182.7,33.68148404]
[1734885826721,3.12,182.79,182.74,2.7381]
[1734885827322,37.08428404,182.85,182.76,2.7378]
[1734885827527,3.12,182.84,182.73,33.68148404]
[1734885828024,2.7369,182.83,182.76,2.7378]
[1734885828220,3.12,182.84,182.73,33.68148404]
[1734885828929,3.12,182.84,182.71,4.7459]
[1734885829227,2.7376,182.78,182.72,2.7383]
[1734885829421,5.8576,182.78,182.72,2.7383]
[1734885829628,3.12,182.78,182.71,1.6259]
[1734885829824,3.12,182.78,182.69,3.4286]
[1734885830024,3.12,182.78,182.69,1.7442]
[1734885830330,3.12,182.78,182.67,89.6061262]
[1734885830719,33.68148404,182.76,182.67,89.6061262]
[1734885830921,1.6037,182.75,182.67,89.6061262]
[1734885831827,2.7384,182.73,182.68,2.7389]
[1734885832031,5.8584,182.73,182.68,2.7389]
[1734885832630,5.8584,182.73,182.69,2.7388]
[1734885832826,3.12,182.73,182.69,2.7388]
[1734885834440,3.12,182.78,182.67,123.28761024]
[1734885834830,3.12,182.78,182.67,33.68148404]
[1734885835036,5.8577,182.78,182.73,2.7382]
[1734885835238,3.12,182.78,182.67,33.68148404]
[1734885835841,5.8576,182.78,182.67,18.07772196]
[1734885836540,5.8576,182.78,182.73,2.7382]
[1734885837241,3.12,182.78,182.75,2.7379]
[1734885837738,5.8575,182.78,182.75,2.7379]
[1734885837946,5.8575,182.78,182.74,2.7381]
[1734885839545,3.12,182.78,182.67,33.68148404]
[1734885839844,3.12,182.78,182.67,1.6563]
[1734885840539,2.7381,182.74,182.7,2.7387]
[1734885840846,3.12,182.78,182.7,2.7387]
[1734885841143,2.7381,182.75,182.67,1.6563]
[1734885841336,2.7381,182.75,182.71,2.7386]
[1734885841947,2.7382,182.74,182.7,2.7387]
[1734885842350,3.12,182.78,182.67,1.6563]
[1734885843045,2.738,182.75,182.7,2.7387]
[1734885843445,3.12,182.78,182.7,2.7387]
[1734885843747,3.12,182.78,182.69,2.7389]
[1734885843948,3.12,182.78,182.67,1.6563]
[1734885844351,2.7384,182.73,182.69,2.7388]
[1734885844548,5.8384,182.73,182.69,2.7388]
[1734885845243,3.1,182.73,182.69,2.7388]
[1734885845444,3.1,182.73,182.67,4.3954]
[1734885845648,3.1,182.73,182.64,1.6608]
[1734885846046,2.7394,182.66,182.62,111.06944798]
[1734885846239,3.1,182.67,182.62,108.32964798]
[1734885846649,2.7398,182.63,182.62,108.32964798]
[1734885847150,23.84186179,182.67,182.57,18.68916811]
[1734885847348,3.1,182.66,182.57,18.68916811]
[1734885848145,3.1,182.66,182.54,18.68916811]
[1734885848550,2.7403,182.6,182.56,2.7408]
[1734885848755,3.1,182.61,182.54,18.68916811]
[1734885849045,3.1,182.61,182.56,2.7408]
[1734885850654,2.7404,182.6,182.56,2.7408]
[1734885851451,5.8401,182.61,182.56,2.7407]
[1734885851653,5.8401,182.61,182.54,18.84480228]
[1734885852150,3.1,182.64,182.54,52.5700169]
[1734885852354,3.1,182.66,182.54,52.5700169]
[1734885852544,3.1,182.67,182.59,2.7403]
[1734885852742,2.7398,182.64,182.59,2.7403]
[1734885852942,2.7398,182.64,182.55,21.94480228]
[1734885852943,3.1,182.67,182.55,21.94480228]
[1734885853144,3.1,182.67,182.57,2.7405]
[1734885853357,3.1,182.67,182.55,18.84480228]
[1734885853555,36.82521462,182.67,182.56,108.48528215]
[1734885853853,2.7397,182.64,182.56,108.48528215]
[1734885854049,36.82521462,182.67,182.56,108.48528215]
[1734885854654,36.82521462,182.67,182.55,2.7408]
[1734885854655,2.7403,182.6,182.55,2.7408]
[1734885855555,3.1,182.61,182.53,3.3016]
[1734885855848,3.1,182.61,182.52,114.75626991]
[1734885856753,3.1,182.61,182.51,2.7415]
[1734885857456,2.741,182.56,182.51,2.7415]
[1734885857852,2.741,182.56,182.51,2.7414]
[1734885858052,3.1,182.61,182.51,2.7414]
[1734885858654,3.1,182.61,182.49,3.2236]
[1734885858655,3.1,182.61,182.54,2.7411]
[1734885858854,33.72521462,182.67,182.53,33.72521462]
[1734885859056,3.1,182.66,182.53,33.72521462]
[1734885859259,2.7402,182.6,182.56,2.7408]
[1734885860360,2.7402,182.6,182.5,3.1]
[1734885860361,3.1,182.65,182.5,36.82521462]
[1734885860562,36.82521462,182.64,182.49,3.2236]
[1734885860756,6.3963,182.63,182.49,3.2236]
[1734885861156,2.7408,182.57,182.49,3.2236]
[1734885861654,2.7408,182.56,182.52,2.7413]
[1734885862560,2.7408,182.56,182.53,2.7413]
[1734885863060,2.741,182.55,182.49,3.2236]
[1734885863255,3.1,182.58,182.49,1.6089]
[1734885863462,36.82521462,182.58,182.49,1.6089]
[1734885863661,36.82521462,182.58,182.47,1.6292]
[1734885863856,36.82521462,182.58,182.48,2.742]
[1734885864762,2.7416,182.52,182.48,2.742]
[1734885865659,3.1,182.53,182.5,2.7416]
[1734885865967,3.1,182.53,182.47,1.6292]
[1734885867566,3.1,182.53,182.5,2.7416]
[1734885867765,3.1,182.53,182.47,1.6292]
[1734885869060,3.1,182.53,182.48,2.742]
[1734885869761,2.7416,182.52,182.48,2.742]
[1734885870067,3.1,182.53,182.48,2.742]
[1734885870564,2.7417,182.51,182.47,4.3713]
[1734885870867,3.1,182.53,182.45,3.3183]
[1734885871275,2.7415,182.52,182.48,2.742]
[1734885871568,3.1,182.53,182.45,3.3183]
[1734885871969,2.7417,182.51,182.47,2.7421]
[1734885872470,3.1,182.53,182.45,3.3183]
[1734885873268,2.7417,182.5,182.47,2.742]
[1734885873669,2.7417,182.5,182.45,3.3183]
[1734885873869,2.7417,182.5,182.46,2.7423]
[1734885874074,2.7417,182.5,182.45,3.3183]
[1734885875479,2.7417,182.5,182.47,2.7422]
[1734885876880,3.1,182.53,182.45,3.3183]
[1734885877074,3.1,182.53,182.43,1.6151]
[1734885878480,2.7424,182.46,182.43,4.3579]
[1734885879377,2.7426,182.45,182.41,2.7431]
[1734885879778,3.1,182.48,182.41,2.7431]
[1734885880987,3.1,182.48,182.4,2.7432]
[1734885882482,2.7429,182.43,182.4,2.7432]
[1734885883488,2.7429,182.43,182.39,2.7433]
[1734885884880,5.8429,182.43,182.39,2.7433]
[1734885885080,3.1,182.43,182.39,2.7433]
[1734885885387,3.1,182.43,182.32,4.8488]
[1734885885788,2.7434,182.39,182.35,2.7439]
[1734885886088,2.7434,182.39,182.32,4.8488]
[1734885886990,20.76768761,182.49,182.32,4.8488]
[1734885887186,3.1,182.48,182.34,20.76768761]
[1734885887586,2.7427,182.44,182.4,2.7431]
[1734885887787,3.2063,182.51,182.35,1.5976]
[1734885888189,2.7426,182.45,182.41,2.743]
[1734885888388,5.8426,182.45,182.41,2.743]
[1734885891095,2.7427,182.44,182.4,2.7432]
[1734885891388,3.1,182.45,182.35,1.5976]
[1734885891595,2.7429,182.42,182.38,2.7434]
[1734885892493,2.7429,182.42,182.39,2.7434]
[1734885892696,3.1,182.45,182.35,1.5976]
[1734885893392,2.7427,182.44,182.4,2.7431]
[1734885893599,5.8427,182.44,182.4,2.7431]
[1734885895197,3.1,182.44,182.4,2.7431]
[1734885895385,2.7428,182.43,182.4,2.7431]
[1734885896896,3.1,182.44,182.35,4.3415]
[1734885897088,3.1,182.44,182.35,1.5976]
[1734885897597,2.7434,182.4,182.36,2.7437]
[1734885899597,2.7434,182.39,182.36,2.7437]
[1734885900705,3.1,182.38,182.33,0.22438]
[1734885901000,23.86768761,182.37,182.33,0.22438]
[1734885901200,3.1,182.36,182.33,0.22438]
[1734885901898,20.76768761,182.37,182.33,0.22438]
[1734885901899,2.7441,182.34,182.33,0.22438]
[1734885902101,5.8441,182.34,182.33,0.22438]
[1734885902400,3.1,182.34,182.25,110.65070247]
[1734885902602,20.76768761,182.37,182.25,110.65070247]
[1734885902797,3.1,182.36,182.25,110.65070247]
[1734885904200,3.1,182.36,182.23,5.0985]
[1734885905302,3.1,182.36,182.28,0.24981]
[1734885905898,2.7445,182.32,182.28,0.24981]
[1734885906100,3.1,182.31,182.28,0.24981]
[1734885906299,2.7448,182.3,182.28,0.24981]
[1734885907100,2.7449,182.29,182.28,0.24981]
[1734885908397,5.8446,182.31,182.28,0.24981]
[1734885908600,1.6995,182.35,182.28,0.24981]
[1734885908799,3.1,182.34,182.28,0.24981]
[1734885909406,23.86768761,182.34,182.28,0.24981]
[1734885909705,2.7449,182.29,182.28,0.24981]
[1734885909897,5.8449,182.29,182.28,0.24981]
[1734885910598,5.8449,182.29,182.17,112.14986748]
[1734885910599,3.1,182.29,182.2,2.7462]
[1734885910795,2.7457,182.24,182.2,2.7462]
[1734885911002,3.1,182.24,182.17,1.7417]
[1734885912103,3.1,182.24,182.16,1.6874]
[1734885913405,2.7461,182.22,182.18,2.7464]
[1734885913595,3.1,182.24,182.13,1.5877]
[1734885914806,20.76768761,182.19,182.08,4.94112623]
[1734885915106,3.1,182.18,182.08,4.94112623]
[1734885916307,5.8466,182.18,182.07,1.7414]
[1734885916510,3.1,182.2,182.09,20.76768761]
[1734885916806,3.1,182.2,182.18,2.7465]
[1734885917000,3.1,182.2,182.12,20.76768761]
[1734885917202,3.1,182.2,182.13,3.2836]
[1734885917599,3.1,182.2,182.18,2.7464]
[1734885917808,3.1,182.2,182.14,1.6001]
[1734885918509,3.1,182.2,182.18,2.7464]
[1734885918804,3.1,182.2,182.14,1.6001]
[1734885920707,3.1,182.23,182.14,1.6001]
[1734885920903,2.7454,182.26,182.14,1.6001]
[1734885921110,3.1,182.28,182.16,20.76768761]
[1734885921311,3.1,182.28,182.17,3.1]
[1734885921504,3.1,182.28,182.24,2.7455]
[1734885921705,24.03998761,182.35,182.19,20.76768761]
[1734885921903,3.1,182.34,182.22,20.76768761]
[1734885922109,3.1,182.34,182.23,4.9414]
[1734885922409,20.76768761,182.42,182.25,20.76768761]
[1734885922609,4.7706,182.4,182.28,20.76768761]
[1734885922809,2.7435,182.39,182.34,2.7441]
[1734885923007,1.5755,182.43,182.31,20.76768761]
[1734885923206,3.1,182.43,182.32,4.8528]
[1734885923805,3.1,182.43,182.38,2.7435]
[1734885924313,3.1,182.47,182.35,33.7966929]
[1734885924502,3.1,182.47,182.42,2.7429]
[1734885924701,3.1,182.47,182.38,33.7966929]
[1734885924903,3.1,182.47,182.41,2.743]
[1734885925109,3.1,182.47,182.38,33.7966929]
[1734885925608,3.1,182.47,182.42,2.7428]
[1734885925912,1.6147,182.51,182.38,33.7966929]
[1734885926113,3.1,182.5,182.4,33.7966929]
[1734885926411,3.1,182.53,182.41,8.0021]
[1734885926711,3.1,182.53,182.48,2.7419]
[1734885926907,3.1,182.55,182.46,33.7966929]
[1734885927112,3.1,182.55,182.49,2.7418]
[1734885927313,3.1,182.55,182.46,33.7966929]
[1734885928514,2.741,182.55,182.49,2.7417]
[1734885928719,5.841,182.55,182.49,2.7417]
[1734885929213,4.4685,182.57,182.51,2.7416]
[1734885929422,3.1,182.58,182.49,33.7966929]
[1734885929620,3.1,182.58,182.5,3.1962]
[1734885930214,5.8407,182.58,182.5,5.9379]
[1734885930414,3.1,182.58,182.5,3.1962]
[1734885931619,2.7407,182.57,182.51,2.7416]
[1734885932417,3.1,182.58,182.46,3.1]
[1734885932617,1.6966,182.57,182.44,37.2332929]
[1734885932813,1.6966,182.57,182.44,3.4366]
[1734885933016,2.7416,182.51,182.44,6.1792]
[1734885933317,5.8416,182.51,182.44,3.4366]
[1734885934120,3.1,182.51,182.44,3.4366]
[1734885934316,3.1,182.51,182.47,33.7966929]
[1734885934518,3.1,182.55,182.47,33.7966929]
[1734885935424,5.8411,182.55,182.49,2.7418]
[1734885935919,2.7411,182.55,182.49,2.7418]
[1734885936220,5.8411,182.55,182.49,2.7418]
[1734885938616,3.1,182.55,182.51,2.7415]
[1734885938816,3.1,182.55,182.5,33.7966929]
[1734885939218,3.1,182.55,182.51,2.7416]
[1734885939622,3.1,182.55,182.47,33.7966929]
[1734885939822,2.7411,182.54,182.49,2.7418]
[1734885940018,3.1,182.55,182.47,33.7966929]
[1734885940219,2.7418,182.5,182.45,2.7423]
[1734885940419,3.1,182.55,182.44,3.4366]
[1734885940724,1.694,182.54,182.44,3.4366]
[1734885941324,2.742,182.49,182.44,3.4366]
[1734885941524,1.694,182.54,182.44,3.4366]
[1734885941525,3.1,182.5,182.44,3.4366]
[1734885941825,3.1,182.5,182.41,1.728]
[1734885942226,3.1,182.5,182.41,4.4711]
[1734885942830,3.1,182.5,182.41,1.728]
[1734885943028,3.1,182.5,182.41,35.5246929]
[1734885944323,2.7419,182.49,182.44,2.7425]
[1734885946432,3.1,182.5,182.41,35.5246929]
[1734885946631,2.7422,182.47,182.43,2.7428]
[1734885947731,2.7421,182.48,182.43,2.7428]
[1734885948626,2.7421,182.48,182.41,35.5246929]
[1734885948827,1.665,182.53,182.41,35.5246929]
[1734885948828,3.1,182.53,182.41,35.5246929]
[1734885949727,3.1,182.53,182.41,1.728]
[1734885950231,2.7422,182.48,182.43,2.7428]
[1734885950920,2.7422,182.48,182.41,1.728]
[1734885951128,3.1,182.53,182.41,1.728]
[1734885951427,3.1,182.57,182.46,20.78076053]
[1734885951732,3.1,182.58,182.47,1.627]
[1734885951933,3.1,182.58,182.47,3.2487]
[1734885952130,2.7407,182.57,182.5,2.7417]
[1734885952338,3.1,182.58,182.47,3.2487]
[1734885952932,3.1,182.6,182.49,20.78076053]
[1734885953231,3.1,182.59,182.5,1.6673]
[1734885953422,2.7408,182.57,182.5,1.6673]
[1734885953928,2.7406,182.58,182.53,2.7412]
[1734885954635,2.7406,182.58,182.5,35.39942393]
[1734885954636,2.7406,182.58,182.54,2.7411]
[1734885955031,1.6846,182.61,182.54,2.7411]
[1734885955230,35.41462393,182.66,182.5,38.49942393]
[1734885955435,1.7115,182.68,182.53,33.73212393]
[1734885955641,2.7398,182.63,182.59,2.7404]
[1734885955826,2.7398,182.63,182.5,4.7673]
[1734885955827,3.1,182.66,182.56,33.73212393]
[1734885956026,3.1,182.67,182.57,3.3369]
[1734885956233,2.7396,182.64,182.59,2.7403]
[1734885956434,3.1,182.67,182.57,3.3369]
[1734885957733,3.1,182.67,182.59,33.73212393]
[1734885958039,3.1,182.67,182.63,2.7396]
[1734885958636,2.739,182.68,182.63,2.7396]
[1734885959230,33.73212393,182.76,182.62,33.73212393]
[1734885959536,3.1,182.75,182.66,2.7392]
[1734885959934,2.7384,182.73,182.66,2.7392]
[1734885960140,3.1,182.75,182.66,2.7392]
[1734885960637,3.2091,182.77,182.62,33.73212393]
[1734885960837,36.83212393,182.76,182.59,3.1]
[1734885961038,33.73212393,182.73,182.59,3.1]
[1734885962742,3.1,182.76,182.59,3.1]
[1734885963038,33.73212393,182.72,182.59,3.1]
[1734885963234,3.08,182.71,182.59,3.1]
[1734885963439,3.08,182.7,182.64,2.7396]
[1734885964045,2.7389,182.69,182.64,2.7396]
[1734885965042,3.08,182.7,182.59,3.1]
[1734885965246,3.08,182.75,182.64,33.73212393]
[1734885965445,3.08,182.75,182.65,3.3355]
[1734885965848,2.7386,182.72,182.67,2.7391]
[1734885966041,3.08,182.75,182.65,3.3355]
[1734885966437,3.08,182.75,182.61,33.73212393]
[1734885966638,3.08,182.75,182.6,3.08]
[1734885966846,2.739,182.68,182.64,2.7396]
[1734885967046,2.739,182.68,182.6,3.08]
[1734885967452,3.08,182.7,182.6,3.08]
[1734885968147,3.08,182.7,182.61,2.74]
[1734885968754,2.7391,182.68,182.61,2.74]
[1734885969047,3.08,182.7,182.61,2.74]
[1734885969239,2.7396,182.65,182.59,3.3355]
[1734885969441,3.08,182.7,182.59,3.3355]
[1734885970557,2.7394,182.66,182.6,2.7402]
[1734885971453,2.7394,182.66,182.59,3.3355]
[1734885971653,2.7394,182.66,182.61,2.7401]
[1734885972152,2.7394,182.66,182.62,2.7398]
[1734885974550,3.08,182.7,182.59,3.3355]